[Event "SRB-ch Semifinal 2021"]
[Site "Paracin"]
[Date "2021.03.17"]
[Round "3.6"]
[White "Stankovic, Milos"]
[Black "Sredojevic, Ivan"]
[Result "1/2-1/2"]
[ECO "B52"]
[WhiteElo "2414"]
[BlackElo "2288"]
[Annotator "NA"]
[PlyCount "91"]
[EventDate "2021.03.16"]
[EventType "swiss"]
[EventCountry "SRB"]
[SourceTitle "playchess.com"]
[Source "ChessBase"]
[SourceQuality "1"]
[TimeControl "40/5400+30:1800+30"]

1. e4 c5 {[%emt 0:02:03]} 2. Nf3 {[%emt 0:02:19]} d6 {[%emt 0:00:09]} 3. Bb5+ {[%emt 0:03:42]} Bd7 {[%emt 0:00:18]} 4. Bxd7+ {[%emt 0:00:29]} Qxd7 {[%emt 0:00:07]} 5. O-O {[%emt 0:00:08]} Nc6 {[%emt 0:01:06]} 6. Qe2 {[%emt 0:00:57]} Nf6 {[%emt 0:01:04]} 7. Rd1 {[%emt 0:00:07]} e6 {[%emt 0:02:35]} 8. d4 {[%emt 0:07:25]} cxd4 {[%emt 0:00:18]} 9. Nxd4 {[%emt 0:00:16]} Rc8 {[%emt 0:02:17]} 10. c4 {[%emt 0:01:49]} a6 {[%emt 0:04:02]} 11. Nc3 {[%emt 0:05:00]} Qc7 {[%emt 0:07:59]} 12. b3 {[%emt 0:02:05]} Be7 {[%emt 0:03:59]} 13. Bb2 {[%emt 0:07:13]} O-O {[%emt 0:00:55]} 14. Rac1 {[%emt 0:00:22]} Qb8 {[%emt 0:11:16]} 15. Nxc6 {[%emt 0:02:32]} Rxc6 {[%emt 0:00:39]} 16. f4 {[%emt 0:00:46]} Rd8 {[%emt 0:03:39]} 17. Kh1 {[%emt 0:04:10]} Bf8 {[%emt 0:00:36]} 18. e5 {[%emt 0:02:30]} Ne8 {[%emt 0:02:28]} 19. Ne4 {[%emt 0:01:25]} Qc8 {[%emt 0:02:19]} 20. Ng5 {[%emt 0:21:35]} h6 {[%emt 0:05:42]} 21. Nf3 d5 {[%emt 0:06:31]} 22. cxd5 {[%emt 0:02:23]} Rxd5 {[%emt 0:00:06]} 23. Rxd5 {[%emt 0:00:35]} Rxc1+ {[%emt 0:00:10]} 24. Bxc1 {[%emt 0:00:12]} exd5 {[%emt 0:00:03]} 25. Be3 {[%emt 0:04:31]} Qf5 {[%emt 0:00:23]} 26. Kg1 {[%emt 0:02:16]} Nc7 {[%emt 0:02:23]} 27. Nd4 {[%emt 0:05:04]} Qb1+ {[%emt 0:03:23]} 28. Kf2 {[%emt 0:00:08]} Bb4 {[%emt 0:00:14]} 29. Qc2 {[%emt 0:02:19]} Qe1+ {[%emt 0:00:13]} 30. Kf3 {[%emt 0:00:10]} Qf1+ {[%emt 0:00:25]} 31. Bf2 {[%emt 0:00:26]} Ne6 {[%emt 0:03:28]} 32. Nxe6 {[%emt 0:02:05]} fxe6 {[%emt 0:00:08]} 33. Qg6 {[%emt 0:02:59]} d4 {[%emt 0:06:28]} 34. Qxe6+ {[%emt 0:00:31]} Kh7 {[%emt 0:01:56]} 35. Qf5+ {[%emt 0:02:15]} Kg8 {[%emt 0:00:08]} 36. Qc8+ {[%emt 0:01:28]} Kh7 {[%emt 0:00:07]} 37. Qf5+ {[%emt 0:00:42]} Kg8 {[%emt 0:00:05]} 38. Qe4 {[%emt 0:00:16]} d3 {[%emt 0:00:45]} 39. Qc4+ {[%emt 0:05:14]} Kh8 {[%emt 0:02:17]} 40. Qxb4 {[%emt 0:00:00]} Qe2+ {[%emt 0:00:00]} 41. Kg3 {[%emt 0:05:58]} d2 {[%emt 0:00:20]} 42. Qf8+ {[%emt 0:00:04]} Kh7 {[%emt 0:00:04]} 43. Qf5+ {[%emt 0:00:11]} Kh8 {[%emt 0:00:57]} 44. Qf8+ {[%emt 0:00:42]} Kh7 {[%emt 0:00:05]} 45. Qf5+ {[%emt 0:00:11]} Kh8 {[%emt 0:00:07]} 46. Qf8+ {[%emt 0:01:35]} 1/2-1/2

[Event "SRB-ch Semifinal 2021"]
[Site "Paracin"]
[Date "2021.03.17"]
[Round "3.7"]
[White "Perunovic, Miodrag"]
[Black "Arsovic, Zoran"]
[Result "1-0"]
[ECO "B23"]
[WhiteElo "2428"]
[BlackElo "2374"]
[Annotator "NA"]
[PlyCount "53"]
[EventDate "2021.03.16"]
[EventType "swiss"]
[EventCountry "SRB"]
[SourceTitle "playchess.com"]
[Source "ChessBase"]
[SourceQuality "1"]
[TimeControl "40/5400+30:1800+30"]

1. e4 {[%emt 0:01:53]} c5 {[%emt 0:00:00]} 2. Nc3 {[%emt 0:00:33]} e6 {[%emt 0:00:10]} 3. Nge2 {[%emt 0:00:29]} Nc6 {[%emt 0:00:50]} 4. g3 {[%emt 0:00:15]} Nf6 {[%emt 0:02:21]} 5. Bg2 {[%emt 0:00:03]} Be7 {[%emt 0:01:18]} 6. O-O {[%emt 0:00:08]} O-O {[%emt 0:00:26]} 7. f4 {[%emt 0:00:06]} d5 {[%emt 0:00:43]} 8. e5 {[%emt 0:00:06]} Nd7 {[%emt 0:00:17]} 9. d3 {[%emt 0:00:07]} Rb8 {[%emt 0:01:05]} 10. a4 {[%emt 0:00:07]} a6 {[%emt 0:00:20]} 11. g4 {[%emt 0:00:08]} b5 {[%emt 0:00:30]} 12. axb5 {[%emt 0:00:04]} axb5 {[%emt 0:00:04]} 13. Ng3 {[%emt 0:00:07]} Qb6 {[%emt 0:06:27]} 14. Nce2 {[%emt 0:04:16]} Bb7 {[%emt 0:04:42]} 15. g5 {[%emt 0:01:56]} Ra8 {[%emt 0:02:33]} 16. Rb1 {[%emt 0:05:36]} d4 {[%emt 0:14:55]} 17. Ne4 {[%emt 0:01:19]} Nb4 {[%emt 0:11:01]} 18. N2g3 {[%emt 0:00:25]} Rae8 {[%emt 0:10:54]} 19. Nh5 {[%emt 0:07:56]} Kh8 {[%emt 0:04:39]} 20. Rf3 {[%emt 0:27:40]} f5 {[%emt 0:23:16]} 21. exf6 {[%emt 0:04:23]} gxf6 {[%emt 0:00:08]} 22. Rh3 {[%emt 0:21:30]} fxg5 {[%emt 0:00:43]} 23. fxg5 {[%emt 0:00:15]} Rg8 {[%emt 0:01:05]} 24. Nhf6 {[%emt 0:02:54]} Bxf6 {[%emt 0:04:18]} 25. Rxh7+ {[%emt 0:00:34]} Kxh7 {[%emt 0:00:04]} 26. Qh5+ {[%emt 0:00:06]} Kg7 {[%emt 0:00:06]} 27. gxf6+ {[%emt 0:00:01]} 1-0

[Event "SRB-ch Semifinal 2021"]
[Site "Paracin"]
[Date "2021.03.17"]
[Round "3.8"]
[White "Budisavljevic, Luka"]
[Black "Djokic, Mihailo"]
[Result "1-0"]
[ECO "C00"]
[WhiteElo "2510"]
[BlackElo "2199"]
[Annotator "ChessBase"]
[PlyCount "65"]
[EventDate "2021.03.16"]
[EventType "swiss"]
[EventCountry "SRB"]
[SourceTitle "playchess.com"]
[Source "ChessBase"]
[SourceQuality "1"]
[TimeControl "40/5400+30:1800+30"]

1. e4 {[%emt 0:01:25]} e6 {[%emt 0:00:00]} 2. d4 {[%emt 0:00:26]} d5 {[%emt 0:00:00]} 3. Bd3 {[%emt 0:00:44]} dxe4 {[%emt 0:01:17]} 4. Bxe4 {[%emt 0:00:06]} Nf6 {[%emt 0:00:03]} 5. Bf3 {[%emt 0:00:07]} c5 {[%emt 0:00:37]} 6. Ne2 {[%emt 0:00:35]} Nc6 {[%emt 0:00:03]} 7. Be3 {[%emt 0:00:23]} e5 {[%emt 0:05:52]} 8. Bxc6+ {[%emt 0:00:09]} bxc6 {[%emt 0:00:03]} 9. dxe5 {[%emt 0:00:10]} Qxd1+ {[%emt 0:02:13]} 10. Kxd1 {[%emt 0:00:02]} Ng4 {[%emt 0:00:19]} 11. Nd2 {[%emt 0:00:03]} Nxe5 {[%emt 0:08:52]} 12. f3 {[%emt 0:15:06]} Be7 {[%emt 0:05:05]} 13. Nc3 {[%emt 0:04:34]} Be6 {[%emt 0:01:32]} 14. Ke2 {[%emt 0:08:50]} O-O {[%emt 0:09:55]} 15. Rhe1 {[%emt 0:05:12]} Nc4 {[%emt 0:07:33]} 16. Nxc4 {[%emt 0:01:18]} Bxc4+ {[%emt 0:00:01]} 17. Kf2 {[%emt 0:00:13]} Rfb8 {[%emt 0:03:06]} 18. Na4 {[%emt 0:03:26]} Bd5 {[%emt 0:05:34]} 19. b3 {[%emt 0:03:39]} c4 {[%emt 0:03:14]} 20. Bc5 {[%emt 0:00:58]} Bh4+ {[%emt 0:02:24]} 21. g3 {[%emt 0:00:07]} Bf6 {[%emt 0:00:06]} 22. Rad1 {[%emt 0:00:13]} Be6 {[%emt 0:04:47]} 23. Bd4 {[%emt 0:03:31]} Bd8 {[%emt 0:04:53]} 24. Nc5 {[%emt 0:08:21]} Ba5 {[%emt 0:00:10]} 25. Re5 {[%emt 0:01:33]} Bd5 {[%emt 0:03:27]} 26. Rg5 {[%emt 0:03:23]} g6 {[%emt 0:04:06]} 27. Nd7 {[%emt 0:01:00]} h6 {[%emt 0:00:28]} 28. Re5 {[%emt 0:10:05]} cxb3 {[%emt 0:04:06]} 29. Nxb8 {[%emt 0:02:25]} f6 {[%emt 0:00:15]} 30. Rxd5 {[%emt 0:02:44]} bxc2 {[%emt 0:01:32]} 31. Rc1 {[%emt 0:00:17]} cxd5 {[%emt 0:00:09]} 32. Nc6 {[%emt 0:00:15]} Bb6 {[%emt 0:00:25]} 33. Rxc2 {[%emt 0:00:58]} 1-0

[Event "SRB-ch Semifinal 2021"]
[Site "Paracin"]
[Date "2021.03.17"]
[Round "3.9"]
[White "Irizanin, Radoje"]
[Black "Mijatovic, Dusan"]
[Result "1/2-1/2"]
[ECO "A00"]
[WhiteElo "2343"]
[BlackElo "2246"]
[Annotator "NA"]
[PlyCount "66"]
[EventDate "2021.03.16"]
[EventType "swiss"]
[EventCountry "SRB"]
[SourceTitle "playchess.com"]
[Source "ChessBase"]
[SourceQuality "1"]
[TimeControl "40/5400+30:1800+30"]

1. a3 {[%emt 0:00:06]} Nf6 {[%emt 0:00:17]} 2. Nf3 {[%emt 0:02:08]} g6 {[%emt 0:00:45]} 3. Nc3 {[%emt 0:02:14]} d5 {[%emt 0:00:35]} 4. d4 {[%emt 0:01:17]} Bg7 {[%emt 0:00:09]} 5. e3 {[%emt 0:01:40]} O-O {[%emt 0:02:15]} 6. Be2 {[%emt 0:00:55]} Nbd7 {[%emt 0:02:16]} 7. O-O {[%emt 0:01:04]} c6 {[%emt 0:00:26]} 8. b3 {[%emt 0:05:18]} Qc7 {[%emt 0:02:50]} 9. Bb2 {[%emt 0:03:09]} e5 {[%emt 0:01:06]} 10. dxe5 {[%emt 0:04:31]} Nxe5 {[%emt 0:01:20]} 11. Rb1 {[%emt 0:00:33]} Ne4 {[%emt 0:10:25]} 12. Nxe4 {[%emt 0:03:22]} dxe4 {[%emt 0:00:12]} 13. Nxe5 {[%emt 0:00:39]} Bxe5 {[%emt 0:00:07]} 14. Bxe5 {[%emt 0:00:09]} Qxe5 {[%emt 0:00:02]} 15. Qd4 {[%emt 0:05:53]} Qxd4 {[%emt 0:27:46]} 16. exd4 {[%emt 0:00:23]} Be6 {[%emt 0:00:06]} 17. f4 {[%emt 0:07:33]} exf3 {[%emt 0:14:03]} 18. Bxf3 {[%emt 0:01:42]} Rad8 {[%emt 0:00:17]} 19. Rbd1 {[%emt 0:02:54]} Bd5 {[%emt 0:03:57]} 20. c4 {[%emt 0:00:30]} Bxf3 {[%emt 0:00:15]} 21. Rxf3 {[%emt 0:02:29]} Rd7 {[%emt 0:01:37]} 22. Kf2 {[%emt 0:02:25]} f5 {[%emt 0:00:59]} 23. Rfd3 {[%emt 0:04:08]} Rfd8 {[%emt 0:01:49]} 24. R1d2 {[%emt 0:07:24]} Kf7 {[%emt 0:01:17]} 25. Kf3 {[%emt 0:08:14]} g5 {[%emt 0:01:30]} 26. d5 {[%emt 0:02:03]} cxd5 {[%emt 0:01:55]} 27. cxd5 {[%emt 0:00:22]} Kf6 {[%emt 0:01:03]} 28. g3 {[%emt 0:06:55]} Rd6 {[%emt 0:03:40]} 29. b4 {[%emt 0:02:51]} Ke5 {[%emt 0:02:44]} 30. Re3+ {[%emt 0:03:14]} Kf6 {[%emt 0:00:01]} 31. Red3 {[%emt 0:03:37]} Ke5 {[%emt 0:00:15]} 32. Re2+ {[%emt 0:00:25]} Kf6 {[%emt 0:00:01]} 33. Red2 {[%emt 0:03:13]} Ke5 1/2-1/2

[Event "SRB-ch Semifinal 2021"]
[Site "Paracin"]
[Date "2021.03.17"]
[Round "3.10"]
[White "Abramovic, Bosko"]
[Black "Ivic, Matija"]
[Result "1-0"]
[ECO "A05"]
[WhiteElo "2330"]
[BlackElo "2186"]
[Annotator "NA"]
[PlyCount "69"]
[EventDate "2021.03.16"]
[EventType "swiss"]
[EventCountry "SRB"]
[SourceTitle "playchess.com"]
[Source "ChessBase"]
[SourceQuality "1"]
[TimeControl "40/5400+30:1800+30"]

1. Nf3 {[%emt 0:04:52]} Nf6 {[%emt 0:00:00]} 2. g3 {[%emt 0:00:11]} d5 {[%emt 0:00:10]} 3. Bg2 {[%emt 0:00:14]} c5 {[%emt 0:03:39]} 4. O-O {[%emt 0:01:00]} Nc6 {[%emt 0:00:08]} 5. d4 {[%emt 0:00:16]} Bg4 {[%emt 0:01:13]} 6. Ne5 {[%emt 0:05:53]} cxd4 {[%emt 0:01:12]} 7. Nxg4 {[%emt 0:00:14]} Nxg4 {[%emt 0:00:03]} 8. e3 {[%emt 0:00:12]} Nf6 {[%emt 0:00:06]} 9. exd4 {[%emt 0:00:07]} e6 {[%emt 0:00:42]} 10. c3 {[%emt 0:01:39]} Bd6 {[%emt 0:00:46]} 11. Nd2 {[%emt 0:02:47]} O-O {[%emt 0:00:26]} 12. Re1 {[%emt 0:00:22]} Qc7 {[%emt 0:00:56]} 13. Nb3 {[%emt 0:00:37]} b5 {[%emt 0:01:27]} 14. a3 {[%emt 0:00:06]} Nd7 {[%emt 0:02:40]} 15. Bf1 {[%emt 0:13:35]} Rab8 {[%emt 0:02:10]} 16. Be3 {[%emt 0:00:16]} a5 {[%emt 0:02:09]} 17. Nc1 {[%emt 0:02:41]} Ne7 {[%emt 0:02:57]} 18. Nd3 {[%emt 0:01:10]} Nf5 {[%emt 0:01:27]} 19. Bd2 {[%emt 0:01:30]} Nb6 {[%emt 0:05:03]} 20. Bh3 {[%emt 0:02:12]} Ne7 {[%emt 0:00:19]} 21. b4 {[%emt 0:00:18]} Nc4 {[%emt 0:00:41]} 22. Nc5 {[%emt 0:00:07]} Ra8 {[%emt 0:00:26]} 23. Bg5 {[%emt 0:02:07]} Ng6 {[%emt 0:02:23]} 24. Bf1 {[%emt 0:08:58]} e5 {[%emt 0:07:22]} 25. dxe5 {[%emt 0:05:29]} Bxe5 {[%emt 0:00:48]} 26. Qd3 {[%emt 0:16:06]} Ra7 {[%emt 0:03:58]} 27. Bg2 {[%emt 0:01:58]} h6 {[%emt 0:01:54]} 28. Be3 {[%emt 0:00:10]} Nxe3 {[%emt 0:00:30]} 29. Qxe3 {[%emt 0:00:15]} Rd8 {[%emt 0:00:14]} 30. Rad1 {[%emt 0:01:52]} axb4 {[%emt 0:00:14]} 31. axb4 {[%emt 0:00:21]} Ra3 {[%emt 0:00:26]} 32. Bxd5 {[%emt 0:03:26]} Rxc3 {[%emt 0:02:09]} 33. Qe4 {[%emt 0:01:23]} Rd6 {[%emt 0:02:51]} 34. f4 {[%emt 0:05:36]} Bf6 {[%emt 0:02:16]} 35. Bxf7+ {[%emt 0:01:59]} 1-0

[Event "SRB-ch Semifinal 2021"]
[Site "Paracin"]
[Date "2021.03.18"]
[Round "4.4"]
[White "Abramovic, Bosko"]
[Black "Budisavljevic, Luka"]
[Result "1/2-1/2"]
[ECO "A05"]
[WhiteElo "2330"]
[BlackElo "2510"]
[Annotator "RC"]
[PlyCount "58"]
[EventDate "2021.03.16"]
[EventType "swiss"]
[EventCountry "SRB"]
[SourceTitle "playchess.com"]
[Source "ChessBase"]
[SourceQuality "1"]
[TimeControl "40/5400+30:1800+30"]

1. Nf3 {[%emt 0:00:12]} Nf6 {[%emt 0:00:11]} 2. g3 {[%emt 0:00:16]} d5 {[%emt 0:00:11]} 3. Bg2 {[%emt 0:00:57]} c5 {[%emt 0:00:14]} 4. O-O {[%emt 0:00:17]} e6 {[%emt 0:00:16]} 5. d4 {[%emt 0:01:30]} cxd4 {[%emt 0:00:21]} 6. Nxd4 {[%emt 0:00:07]} e5 {[%emt 0:00:30]} 7. Nb3 {[%emt 0:00:21]} Be6 {[%emt 0:00:35]} 8. c4 {[%emt 0:05:13]} Nc6 {[%emt 0:00:49]} 9. cxd5 {[%emt 0:00:11]} Nxd5 {[%emt 0:00:15]} 10. Bd2 {[%emt 0:00:26]} Be7 {[%emt 0:04:11]} 11. Nc3 {[%emt 0:00:06]} Nb6 {[%emt 0:04:59]} 12. Ne4 {[%emt 0:10:01]} Na4 {[%emt 0:20:04]} 13. Na5 {[%emt 0:12:28]} Nxb2 {[%emt 0:09:00]} 14. Nxb7 {[%emt 0:06:46]} Qb6 {[%emt 0:34:43]} 15. Qb1 {[%emt 0:23:20]} O-O {[%emt 0:05:10]} 16. Nbc5 {[%emt 0:03:08]} Bf5 {[%emt 0:02:48]} 17. Bc3 {[%emt 0:00:22]} Rab8 {[%emt 0:02:58]} 18. e3 {[%emt 0:23:19]} Kh8 {[%emt 0:04:40]} 19. Bxb2 {[%emt 0:01:17]} Qxb2 {[%emt 0:00:52]} 20. Qxb2 {[%emt 0:00:45]} Rxb2 {[%emt 0:00:02]} 21. Rfd1 {[%emt 0:05:02]} Rd8 {[%emt 0:02:43]} 22. Rxd8+ {[%emt 0:00:54]} Nxd8 {[%emt 0:00:01]} 23. h3 {[%emt 0:00:13]} h5 {[%emt 0:00:55]} 24. Nd3 {[%emt 0:00:39]} Rb5 {[%emt 0:00:41]} 25. Rc1 {[%emt 0:01:52]} Ne6 {[%emt 0:00:57]} 26. a4 {[%emt 0:00:29]} Ra5 {[%emt 0:02:13]} 27. Rc4 {[%emt 0:00:52]} Rd5 {[%emt 0:01:28]} 28. Nb4 {[%emt 0:00:35]} Rd1+ {[%emt 0:00:54]} 29. Kh2 {[%emt 0:00:06]} Bxb4 {[%emt 0:01:13]} 1/2-1/2

[Event "SRB-ch Semifinal 2021"]
[Site "Paracin"]
[Date "2021.03.18"]
[Round "4.8"]
[White "Sredojevic, Ivan"]
[Black "Zegarac, Vuk"]
[Result "1-0"]
[ECO "B15"]
[WhiteElo "2288"]
[BlackElo "2386"]
[Annotator "NA"]
[PlyCount "61"]
[EventDate "2021.03.16"]
[EventType "swiss"]
[EventCountry "SRB"]
[SourceTitle "playchess.com"]
[Source "ChessBase"]
[SourceQuality "1"]
[TimeControl "40/5400+30:1800+30"]

1. e4 {[%emt 0:00:00]} c6 {[%emt 0:00:01]} 2. d4 {[%emt 0:00:00]} d5 {[%emt 0:00:30]} 3. Nc3 {[%emt 0:00:00]} dxe4 {[%emt 0:00:31]} 4. Nxe4 {[%emt 0:00:00]} Nf6 {[%emt 0:00:31]} 5. Nxf6+ {[%emt 0:00:02]} exf6 {[%emt 0:00:05]} 6. c3 {[%emt 0:00:11]} Bd6 {[%emt 0:00:08]} 7. Bd3 {[%emt 0:00:05]} O-O {[%emt 0:00:08]} 8. Ne2 {[%emt 0:00:02]} Re8 {[%emt 0:00:08]} 9. O-O {[%emt 0:00:07]} Nd7 {[%emt 0:01:02]} 10. Bf4 {[%emt 0:06:43]} Nf8 {[%emt 0:01:40]} 11. Qd2 {[%emt 0:03:17]} Be6 {[%emt 0:04:56]} 12. Rfe1 {[%emt 0:01:33]} Be7 {[%emt 0:05:51]} 13. Qc2 {[%emt 0:03:16]} Qd7 {[%emt 0:05:08]} 14. Rad1 {[%emt 0:00:20]} f5 {[%emt 0:05:33]} 15. d5 {[%emt 0:15:48]} cxd5 {[%emt 0:15:00]} 16. Nd4 {[%emt 0:00:15]} a6 {[%emt 0:00:49]} 17. Bxf5 {[%emt 0:08:36]} Bf6 {[%emt 0:03:19]} 18. Nxe6 {[%emt 0:03:18]} fxe6 {[%emt 0:00:55]} 19. Bd3 {[%emt 0:09:38]} e5 {[%emt 0:07:30]} 20. Bg3 {[%emt 0:07:05]} Qf7 {[%emt 0:01:54]} 21. f3 {[%emt 0:00:13]} g6 {[%emt 0:07:08]} 22. Qd2 {[%emt 0:10:00]} Kg7 {[%emt 0:06:40]} 23. Bc2 {[%emt 0:03:57]} d4 {[%emt 0:01:14]} 24. Bb3 {[%emt 0:02:27]} Qd7 {[%emt 0:00:55]} 25. Re4 {[%emt 0:02:52]} a5 {[%emt 0:07:54]} 26. Qe2 {[%emt 0:03:18]} a4 {[%emt 0:16:42]} 27. Bc4 {[%emt 0:00:24]} Ra5 {[%emt 0:02:58]} 28. cxd4 {[%emt 0:02:31]} Qc7 {[%emt 0:01:22]} 29. dxe5 {[%emt 0:02:39]} Bxe5 {[%emt 0:00:12]} 30. f4 {[%emt 0:00:18]} b5 {[%emt 0:00:40]} 31. Bd5 {[%emt 0:01:14]} 1-0

[Event "SRB-ch Semifinal 2021"]
[Site "Paracin"]
[Date "2021.03.18"]
[Round "4.10"]
[White "Pajcin, Lav"]
[Black "Irizanin, Radoje"]
[Result "0-1"]
[ECO "B12"]
[WhiteElo "2167"]
[BlackElo "2343"]
[Annotator "NA"]
[PlyCount "62"]
[EventDate "2021.03.16"]
[EventType "swiss"]
[EventCountry "SRB"]
[SourceTitle "playchess.com"]
[Source "ChessBase"]
[SourceQuality "1"]
[TimeControl "40/5400+30:1800+30"]

1. e4 {[%emt 0:00:00]} c6 {[%emt 0:00:00]} 2. d4 {[%emt 0:00:38]} d5 {[%emt 0:00:05]} 3. e5 {[%emt 0:01:49]} Bf5 {[%emt 0:01:22]} 4. c4 {[%emt 0:01:50]} e6 {[%emt 0:00:32]} 5. Nc3 {[%emt 0:00:11]} Nd7 {[%emt 0:03:56]} 6. cxd5 {[%emt 0:04:28]} cxd5 {[%emt 0:02:58]} 7. Nge2 {[%emt 0:00:23]} Ne7 {[%emt 0:05:11]} 8. Ng3 {[%emt 0:03:06]} Bg6 {[%emt 0:00:30]} 9. h4 {[%emt 0:03:33]} h6 {[%emt 0:00:31]} 10. h5 {[%emt 0:01:58]} Bh7 {[%emt 0:00:08]} 11. Bd3 {[%emt 0:02:04]} Bxd3 {[%emt 0:01:09]} 12. Qxd3 {[%emt 0:00:06]} Nc6 {[%emt 0:00:36]} 13. O-O {[%emt 0:03:31]} Be7 {[%emt 0:06:00]} 14. Be3 {[%emt 0:08:07]} O-O {[%emt 0:05:21]} 15. Nce2 {[%emt 0:06:03]} Rc8 {[%emt 0:05:26]} 16. a3 {[%emt 0:02:48]} Nb6 {[%emt 0:11:43]} 17. b3 {[%emt 0:09:06]} a5 {[%emt 0:02:01]} 18. Nc3 {[%emt 0:16:16]} a4 {[%emt 0:04:04]} 19. b4 {[%emt 0:08:21]} Nc4 {[%emt 0:05:26]} 20. Nxa4 {[%emt 0:01:55]} Ra8 {[%emt 0:01:01]} 21. Qb3 {[%emt 0:04:27]} Bg5 {[%emt 0:06:28]} 22. Rfd1 {[%emt 0:07:35]} Nxe3 {[%emt 0:05:15]} 23. fxe3 {[%emt 0:00:02]} Rxa4 {[%emt 0:01:29]} 24. Qxa4 {[%emt 0:06:39]} Bxe3+ {[%emt 0:00:27]} 25. Kf1 {[%emt 0:00:06]} Qg5 {[%emt 0:03:50]} 26. Nh1 {[%emt 0:01:53]} f6 {[%emt 0:02:08]} 27. Ke2 {[%emt 0:02:07]} fxe5 {[%emt 0:05:42]} 28. Kd3 {[%emt 0:00:19]} Nxd4 {[%emt 0:06:21]} 29. Rf1 {[%emt 0:02:32]} e4+ {[%emt 0:01:49]} 30. Kc3 {[%emt 0:00:11]} Rc8+ {[%emt 0:01:24]} 31. Kb2 {[%emt 0:00:46]} Qxg2+ {[%emt 0:01:01]} 0-1

[Event "SRB-ch Semifinal 2021"]
[Site "Paracin"]
[Date "2021.03.19"]
[Round "5.1"]
[White "Ratkovic, Miloje"]
[Black "Sedlak, Nikola"]
[Result "1-0"]
[ECO "D85"]
[WhiteElo "2497"]
[BlackElo "2514"]
[Annotator "ChessBase"]
[PlyCount "49"]
[EventDate "2021.03.16"]
[EventType "swiss"]
[EventCountry "SRB"]
[SourceTitle "playchess.com"]
[Source "ChessBase"]
[SourceQuality "1"]
[TimeControl "40/5400+30:1800+30"]

1. d4 {[%emt 0:00:00]} Nf6 {[%emt 0:01:55]} 2. c4 {[%emt 0:01:10]} g6 {[%emt 0:00:10]} 3. Nc3 {[%emt 0:00:09]} d5 {[%emt 0:00:18]} 4. cxd5 {[%emt 0:00:08]} Nxd5 {[%emt 0:00:07]} 5. e4 {[%emt 0:00:05]} Nxc3 {[%emt 0:00:11]} 6. bxc3 {[%emt 0:00:05]} Bg7 {[%emt 0:00:09]} 7. Be3 {[%emt 0:00:06]} c5 {[%emt 0:00:21]} 8. Qd2 {[%emt 0:00:07]} Qa5 {[%emt 0:00:20]} 9. Rc1 {[%emt 0:00:08]} Nd7 {[%emt 0:01:00]} 10. d5 {[%emt 0:07:14]} O-O {[%emt 0:08:58]} 11. Nf3 {[%emt 0:01:19]} Nf6 {[%emt 0:01:15]} 12. e5 {[%emt 0:01:47]} Ng4 {[%emt 0:02:55]} 13. Bf4 {[%emt 0:00:15]} Qc7 {[%emt 0:08:50]} 14. Qe2 {[%emt 0:03:06]} f6 {[%emt 0:04:46]} 15. Qc4 {[%emt 0:12:53]} Qb6 {[%emt 0:03:02]} 16. e6 {[%emt 0:04:49]} f5 {[%emt 0:17:24]} 17. Be2 {[%emt 0:17:09]} Nf6 {[%emt 0:00:21]} 18. d6 {[%emt 0:21:58]} Kh8 {[%emt 0:07:54]} 19. d7 {[%emt 0:00:58]} Bxd7 {[%emt 0:00:09]} 20. exd7 {[%emt 0:00:06]} Nxd7 {[%emt 0:00:04]} 21. Ng5 {[%emt 0:02:57]} Qf6 {[%emt 0:02:27]} 22. Qe6 {[%emt 0:01:12]} h6 {[%emt 0:00:27]} 23. h4 {[%emt 0:02:35]} Nb6 {[%emt 0:00:10]} 24. h5 {[%emt 0:01:52]} gxh5 {[%emt 0:01:28]} 25. Rxh5 {[%emt 0:00:11]} 1-0

[Event "SRB-ch Semifinal 2021"]
[Site "Paracin"]
[Date "2021.03.19"]
[Round "5.2"]
[White "Tadic, Stefan"]
[Black "Cabarkapa, Novak"]
[Result "1/2-1/2"]
[ECO "D86"]
[WhiteElo "2419"]
[BlackElo "2455"]
[Annotator "ChessBase"]
[PlyCount "72"]
[EventDate "2021.03.16"]
[EventType "swiss"]
[EventCountry "SRB"]
[SourceTitle "playchess.com"]
[Source "ChessBase"]
[SourceQuality "1"]
[TimeControl "40/5400+30:1800+30"]

1. d4 {[%emt 0:01:25]} Nf6 {[%emt 0:00:39]} 2. c4 {[%emt 0:00:13]} g6 {[%emt 0:03:33]} 3. Nc3 {[%emt 0:00:09]} d5 {[%emt 0:00:29]} 4. cxd5 {[%emt 0:00:25]} Nxd5 {[%emt 0:00:05]} 5. e4 {[%emt 0:00:06]} Nxc3 {[%emt 0:00:05]} 6. bxc3 {[%emt 0:00:04]} Bg7 {[%emt 0:00:05]} 7. Bc4 {[%emt 0:00:41]} c5 {[%emt 0:00:52]} 8. Ne2 {[%emt 0:01:13]} O-O {[%emt 0:00:14]} 9. O-O {[%emt 0:00:54]} Nc6 {[%emt 0:00:03]} 10. Be3 {[%emt 0:00:32]} Bg4 {[%emt 0:00:23]} 11. f3 {[%emt 0:00:57]} Bd7 {[%emt 0:00:04]} 12. Rb1 {[%emt 0:03:28]} a6 {[%emt 0:02:34]} 13. h4 {[%emt 0:03:17]} Na5 {[%emt 0:22:47]} 14. Bd3 {[%emt 0:08:10]} cxd4 {[%emt 0:06:27]} 15. cxd4 {[%emt 0:00:51]} Rc8 {[%emt 0:03:27]} 16. h5 {[%emt 0:08:30]} Nc4 {[%emt 0:10:32]} 17. Bxc4 {[%emt 0:28:32]} Rxc4 {[%emt 0:00:05]} 18. hxg6 {[%emt 0:00:05]} hxg6 {[%emt 0:00:52]} 19. Rxb7 {[%emt 0:09:00]} Ba4 {[%emt 0:09:15]} 20. Qb1 {[%emt 0:04:58]} Bb5 {[%emt 0:07:29]} 21. Rd1 {[%emt 0:03:50]} Qc8 {[%emt 0:08:15]} 22. Rxe7 {[%emt 0:04:46]} Bf6 {[%emt 0:01:55]} 23. Ra7 {[%emt 0:00:48]} Qb8 {[%emt 0:01:29]} 24. d5 {[%emt 0:02:51]} Be5 {[%emt 0:04:35]} 25. Qb3 {[%emt 0:03:37]} Rfc8 {[%emt 0:04:54]} 26. d6 {[%emt 0:09:56]} Bxd6 {[%emt 0:01:00]} 27. Rb1 {[%emt 0:00:38]} Rf8 {[%emt 0:04:42]} 28. Kf2 {[%emt 0:02:41]} Rb4 {[%emt 0:03:40]} 29. Qxb4 {[%emt 0:00:55]} Bxb4 {[%emt 0:00:07]} 30. Rxb4 {[%emt 0:00:01]} Qd6 {[%emt 0:00:36]} 31. Rd4 {[%emt 0:00:31]} Qh2 {[%emt 0:01:37]} 32. Rd2 {[%emt 0:01:18]} Rc8 {[%emt 0:01:13]} 33. a4 {[%emt 0:00:27]} Bxa4 {[%emt 0:01:31]} 34. Rxa6 {[%emt 0:00:15]} Bb5 {[%emt 0:00:13]} 35. Ra1 {[%emt 0:00:07]} Bxe2 {[%emt 0:00:28]} 36. Rxe2 {[%emt 0:00:03]} Qh4+ {[%emt 0:00:17]} 1/2-1/2